[Event "FIDE Grand Swiss 2023"]
[Site "Villa Marina, Douglas, Isle of Man"]
[Date "2023.11.03"]
[Round "9.51"]
[White "Nguyen, Thai Dai Van"]
[Black "Samunenkov, Ihor"]
[Result "1/2-1/2"]
[WhiteElo "2618"]
[BlackElo "2531"]
[EventDate "2023.10.25"]
[ECO "E04"]
[PlyCount "132"]
[BlackClock "00:37:28"]
[BlackFideId "14187086"]
[TimeControl "40/100 + 20/50 + 15 + 30s/move"]
[WhiteClock "00:05:51"]
[WhiteFideId "358878"]

1.d4 {[%clk 01:40:59][%emt 00:00:01]} 1...d5 {[%clk 01:40:46][%emt 00:00:14]} 
2.c4 {[%clk 01:41:24][%emt 00:00:04]} 2...e6 {[%clk 01:41:08][%emt 00:00:09]} 
3.Nf3 {[%clk 01:41:12][%emt 00:00:42]} 3...Nf6 {[%clk 01:41:27][%emt 00:00:11]} 
4.g3 {[%clk 01:41:35][%emt 00:00:06]} 4...dxc4 {[%clk 01:41:02][%emt 00:00:56]} 
5.Bg2 {[%clk 01:41:57][%emt 00:00:08]} 5...c5 {[%clk 01:41:20][%emt 00:00:13]} 
6.O-O {[%clk 01:41:44][%emt 00:00:42]} 6...Nc6 {[%clk 01:41:43][%emt 00:00:07]} 
7.Qa4 {[%clk 01:25:26][%emt 00:16:47]} 7...Bd7 {[%clk 01:42:00][%emt 00:00:13]} 
8.Qxc4 {[%clk 01:25:54][%emt 00:00:02]} 8...cxd4 {[%clk 01:41:34][%emt
00:00:56]} 9.Nxd4 {[%clk 01:26:19][%emt 00:00:06]} 9...Rc8 {[%clk 01:41:53][%emt
00:00:11]} 10.Nc3 {[%clk 01:23:36][%emt 00:03:13]} 10...Nxd4 {[%clk
01:42:02][%emt 00:00:21]} 11.Qxd4 {[%clk 01:24:04][%emt 00:00:02]} 11...Bc5 
{[%clk 01:42:21][%emt 00:00:11]} 12.Qh4 {[%clk 01:24:29][%emt 00:00:05]} 
12...Bc6 {[%clk 01:41:54][%emt 00:00:57]} 13.Bxc6+ {[%clk 01:09:44][%emt
00:15:15]} 13...Rxc6 {[%clk 01:42:09][%emt 00:00:15]} 14.Bg5 {[%clk
01:10:11][%emt 00:00:02]} 14...Be7 {[%clk 01:30:10][%emt 00:12:29]} 15.Rfd1 
{[%clk 01:07:14][%emt 00:03:28]} 15...Qa5 {[%clk 01:21:14][%emt 00:09:26]} 
16.Ne4 {[%clk 01:07:14][%emt 00:00:30]} 16...Qe5 {[%clk 01:19:28][%emt
00:02:16]} 17.Nxf6+ {[%clk 01:05:18][%emt 00:02:24]} 17...Bxf6 {[%clk
01:19:25][%emt 00:00:35]} 18.Bxf6 {[%clk 01:05:42][%emt 00:00:06]} 18...Qxf6 
{[%clk 01:19:44][%emt 00:00:11]} 19.Qxf6 {[%clk 01:06:07][%emt 00:00:05]} 
19...gxf6 {[%clk 01:20:06][%emt 00:00:07]} 20.Rac1 {[%clk 01:06:35][%emt
00:00:02]} 20...Rxc1 {[%clk 01:17:42]} ( 20...Rc3 {[%emt 00:02:54]} 21.Rc2 Rxc2 
{[%clk 01:17:42]} 22.Rc1 {[%clk 01:06:37] [%emt 00:00:28]} ) 21.Rxc1 {[%clk
01:06:37][%emt 00:03:22]} 21...Kd7 {[%clk 01:18:03][%emt 00:00:08]} 22.Kg2 
{[%clk 01:06:30][%emt 00:00:38]} 22...Rg8 {[%clk 01:05:07][%emt 00:13:26]} 
23.f4 {[%clk 01:00:18][%emt 00:06:41]} 23...f5 {[%clk 00:56:23][%emt 00:09:14]} 
24.Kh3 {[%clk 00:48:50][%emt 00:11:59]} 24...Rg6 {[%clk 00:50:23] [%emt
00:06:29]} 25.Rd1+ {[%clk 00:43:19][%emt 00:06:01]} 25...Kc7 {[%clk
00:49:13][%emt 00:01:40]} 26.Rc1+ {[%clk 00:43:00][%emt 00:00:50]} 26...Kd7 
{[%clk 00:50:23][%emt 00:06:29]} 27.Rc3 {[%clk 00:43:25][%emt 00:00:06]} 
27...a5 {[%clk 00:27:44][%emt 00:22:12]} 28.Rc2 {[%clk 00:28:00][%emt 00:15:55]} 
28...Rh6+ {[%clk 00:25:52][%emt 00:02:22]} 29.Kg2 {[%clk 00:27:43][%emt
00:00:49]} 29...Rg6 {[%clk 00:26:05] [%emt 00:00:15]} 30.Kf3 {[%clk
00:26:24][%emt 00:01:49]} 30...Rg8 {[%clk 00:24:29][%emt 00:02:06]} 31.Kg2 
{[%clk 00:17:50][%emt 00:09:05]} 31...Rg6 {[%clk 00:26:05][%emt 00:00:15]} 
32.Rc5 {[%clk 00:17:30][%emt 00:00:50]} 32...b6 {[%clk 00:21:01][%emt 00:00:19]} 
33.Rc2 {[%clk 00:17:41][%emt 00:00:19]} 33...Rg8 {[%clk 00:18:34][%emt
00:02:57]} 34.Kh3 {[%clk 00:16:17][%emt 00:01:54]} 34...Rg6 {[%clk
00:14:26][%emt 00:04:39]} 35.Rd2+ {[%clk 00:16:11][%emt 00:00:35]} 35...Ke7 
{[%clk 00:10:26][%emt 00:04:30]} 36.Rd3 {[%clk 00:07:55][%emt 00:08:46]} 
36...Rg8 {[%clk 00:09:07][%emt 00:01:48]} 37.Rb3 {[%clk 00:07:18][%emt
00:01:07]} 37...Rc8 {[%clk 00:01:37][%emt 00:08:01]} 38.Rxb6 {[%clk
00:03:35][%emt 00:04:13]} 38...Rc2 {[%clk 00:02:00][%emt 00:00:06]} 39.e3 
{[%clk 00:03:55][%emt 00:00:11]} 39...Kf6 {[%clk 00:01:01][%emt 00:01:29]} 
40.Rb5 {[%clk 00:00:51][%emt 00:03:34]} 40...Kg6 {[%clk 00:00:40][%emt
00:00:51]} 41.a4 {[%clk 00:37:36][%emt 00:13:46]} 41...Re2 {[%clk 00:45:02][%emt
00:06:07]} 42.Rb3 {[%clk 00:25:02][%emt 00:13:05]} 42...h5 {[%clk 00:37:36][%emt
00:07:55]} 43.Rb5 {[%clk 00:25:26][%emt 00:00:07]} 43...Rd2 {[%clk
00:34:16][%emt 00:03:49]} 44.Rxa5 {[%clk 00:15:40][%emt 00:10:16]} 44...Rxb2 
{[%emt 00:00:15]} 45.Ra8 {[%clk 00:16:01]} 45...Ra2 {[%clk 00:29:58][%emt
00:05:12]} 46.Ra5 {[%clk 00:08:20][%emt 00:08:12]} 46...Kh6 {[%clk
00:29:17][%emt 00:01:10]} 47.Ra7 {[%clk 00:05:54][%emt 00:02:56]} 47...Kg6 
{[%clk 00:28:32][%emt 00:01:15]} 48.Ra6 {[%clk 00:06:20][%emt 00:00:06]} 
48...Kg7 {[%clk 00:28:23][%emt 00:00:38]} 49.a5 {[%clk 00:06:35][%emt 00:00:15]} 
49...Kg6 {[%clk 00:28:03][%emt 00:00:49]} 50.Ra7 {[%clk 00:06:53][%emt
00:00:13]} 50...Kf6 {[%clk 00:28:00][%emt 00:00:33]} 51.a6 {[%clk 00:06:43]
[%emt 00:00:40]} 51...Kg6 {[%clk 00:27:37] [%emt 00:00:52]} 52.Ra8 {[%clk
00:07:08] [%emt 00:00:06]} 52...Kf6 {[%clk 00:27:19] [%emt 00:00:47]} 53.Ra7 
{[%clk 00:06:43][%emt 00:00:40]} 53...Kg6 {[%clk 00:27:37][%emt 00:00:52]} 
54.Ra8 {[%clk 00:07:08][%emt 00:00:06]} 54...Kf6 {[%clk 00:27:19][%emt
00:00:47]} 55.Rh8 {[%clk 00:02:44][%emt 00:03:28]} 55...Rxa6 {[%clk
00:23:48][%emt 00:04:33]} 56.Rxh5 {[%clk 00:03:12][%emt 00:00:03]} 56...Ra3 
{[%clk 00:23:57][%emt 00:00:20]} 57.e4 {[%clk 00:02:06][%emt 00:01:37]} 
57...fxe4 {[%clk 00:24:17][%emt 00:00:09]} 58.Re5 {[%clk 00:02:29][%emt
00:00:06]} 58...Ra4 {[%clk 00:23:00][%emt 00:01:47]} 59.g4 {[%clk 00:02:10][%emt
00:00:49]} 59...Ra3+ {[%clk 00:21:47][%emt 00:01:44]} 60.Kg2 {[%clk
00:01:43][%emt 00:00:57]} 60...Ra2+ {[%clk 00:21:58][%emt 00:00:19]} 61.Kg3 
{[%clk 00:01:51][%emt 00:00:22]} 61...Ra3+ {[%clk 00:21:52][%emt 00:00:34]} 
62.Kh4 {[%clk 00:11:29][%emt 00:05:52]} 62...Re3 {[%clk 00:37:08][%emt
00:00:15]} 63.h3 {[%clk 00:10:02] [%emt 00:01:57]} 63...Kg6 {[%clk 00:36:44]
[%emt 00:00:54]} 64.Rg5+ {[%clk 00:10:08] [%emt 00:00:24]} 64...Kf6 {[%clk
00:36:58] [%emt 00:00:17]} 65.Re5 {[%clk 00:10:02][%emt 00:01:57]} 65...Kg6 
{[%clk 00:36:44][%emt 00:00:54]} 66.Rg5+ {[%clk 00:10:08][%emt 00:00:24]} 
66...Kf6 {[%clk 00:36:58][%emt 00:00:17]} 1/2-1/2

[Event "FIDE Grand Swiss 2023"]
[Site "Villa Marina, Douglas, Isle of Man"]
[Date "2023.11.03"]
[Round "9.52"]
[White "Dardha, Daniel"]
[Black "Mareco, Sandro"]
[Result "1/2-1/2"]
[WhiteElo "2580"]
[BlackElo "2606"]
[EventDate "2023.10.25"]
[ECO "E00"]
[PlyCount "52"]
[BlackFideId "112275"]
[TimeControl "40/100 + 20/50 + 15 + 30s/move"]
[WhiteFideId "240990"]

1.d4 {[%clk 01:40:52][%emt 00:00:07]} 1...Nf6 {[%clk 01:40:55][%emt 00:00:05]} 
2.c4 {[%clk 01:41:18][%emt 00:00:04]} 2...e6 {[%clk 01:41:21][%emt 00:00:04]} 
3.Bf4 {[%clk 01:41:41][%emt 00:00:07]} 3...d5 {[%clk 01:36:24][%emt 00:05:28]} 
4.cxd5 {[%clk 01:41:39][%emt 00:00:32]} 4...exd5 {[%clk 01:36:50][%emt
00:00:04]} 5.e3 {[%clk 01:41:59][%emt 00:00:09]} 5...Bd6 {[%clk 01:35:55][%emt
00:01:26]} 6.Bxd6 {[%clk 01:41:50][%emt 00:00:39]} 6...Qxd6 {[%clk
01:36:20][%emt 00:00:05]} 7.Bd3 {[%clk 01:42:04][%emt 00:00:16]} 7...O-O {[%clk
01:35:01][%emt 00:01:49]} 8.Nc3 {[%clk 01:40:38][%emt 00:01:55]} 8...Re8 {[%clk
01:30:12][%emt 00:05:20]} 9.h3 {[%clk 01:35:50][%emt 00:05:18]} 9...a6 {[%clk
01:25:54][%emt 00:04:48]} 10.Nf3 {[%clk 01:34:59][%emt 00:01:20]} 10...Nbd7 
{[%clk 01:26:12][%emt 00:00:13]} 11.O-O {[%clk 01:29:41][%emt 00:05:47]} 
11...b6 {[%clk 01:24:44][%emt 00:01:59]} 12.Qb1 {[%clk 01:22:51][%emt 00:07:20]} 
12...c5 {[%clk 01:02:13][%emt 00:23:01]} 13.b3 {[%clk 01:18:21][%emt 00:04:59]} 
13...Bb7 {[%clk 00:58:07][%emt 00:04:36]} 14.Qb2 {[%clk 01:17:49][%emt
00:01:02]} 14...Rac8 {[%clk 00:55:20][%emt 00:03:18]} 15.a4 {[%clk
01:13:55][%emt 00:04:23]} 15...Rc7 {[%clk 00:45:54][%emt 00:09:56]} 16.Rac1 
{[%clk 01:10:42][%emt 00:03:43]} 16...g6 {[%clk 00:30:07][%emt 00:16:18]} 
17.Rfd1 {[%clk 01:08:26][%emt 00:02:45]} 17...Rec8 {[%clk 00:24:38][%emt
00:05:59]} 18.Bf1 {[%clk 01:07:52][%emt 00:01:04]} 18...Qe7 {[%clk
00:21:33][%emt 00:03:35]} 19.Rc2 {[%clk 01:00:09][%emt 00:08:13]} 19...Nf8 
{[%clk 00:18:17][%emt 00:03:47]} 20.Rdc1 {[%clk 00:53:51][%emt 00:06:48]} 
20...Ne6 {[%clk 00:18:38][%emt 00:00:09]} 21.Ne2 {[%clk 00:52:07][%emt
00:02:14]} 21...Ne4 {[%clk 00:17:51][%emt 00:01:18]} 22.Ne5 {[%clk
00:17:08][%emt 00:35:28]} 22...Qf6 {[%clk 00:17:01] [%emt 00:01:21]} 23.Ng4 
{[%clk 00:16:20] [%emt 00:01:17]} 23...Qg7 {[%clk 00:17:19] [%emt 00:00:12]} 
24.Ne5 {[%clk 00:15:00] [%emt 00:01:50]} 24...Qf6 {[%clk 00:17:31] [%emt
00:00:18]} 25.Ng4 {[%clk 00:16:20][%emt 00:01:17]} 25...Qg7 {[%clk
00:17:19][%emt 00:00:12]} 26.Ne5 {[%clk 00:15:00][%emt 00:01:50]} 26...Qf6 
{[%clk 00:17:01][%emt 00:01:21]} 1/2-1/2

[Event "FIDE Grand Swiss 2023"]
[Site "Villa Marina, Douglas, Isle of Man"]
[Date "2023.11.03"]
[Round "9.53"]
[White "Lazavik, Denis"]
[Black "Sanal, Vahap"]
[Result "1/2-1/2"]
[WhiteElo "2560"]
[BlackElo "2603"]
[EventDate "2023.10.25"]
[ECO "D30"]
[PlyCount "69"]
[BlackClock "00:16:41"]
[BlackFideId "6300545"]
[TimeControl "40/100 + 20/50 + 15 + 30s/move"]
[WhiteClock "00:28:14"]
[WhiteFideId "13515110"]

1.d4 {[%clk 01:40:52][%emt 00:00:08]} 1...d5 {[%clk 01:40:54][%emt 00:00:06]} 
2.c4 {[%clk 01:41:05][%emt 00:00:17]} 2...e6 {[%clk 01:41:19][%emt 00:00:05]} 
3.Nf3 {[%clk 01:41:09][%emt 00:00:26]} 3...Nf6 {[%clk 01:41:43][%emt 00:00:07]} 
4.g3 {[%clk 01:41:16][%emt 00:00:22]} 4...Be7 {[%clk 01:42:07][%emt 00:00:07]} 
5.Bg2 {[%clk 01:40:11][%emt 00:01:34]} 5...O-O {[%clk 01:42:28][%emt 00:00:09]} 
6.O-O {[%clk 01:35:23][%emt 00:05:18]} 6...a5 {[%clk 01:42:48][%emt 00:00:10]} 
7.Qc2 {[%clk 01:34:57][%emt 00:00:55]} 7...c6 {[%clk 01:43:07][%emt 00:00:12]} 
8.Nbd2 {[%clk 01:31:45][%emt 00:03:41]} 8...Na6 {[%clk 01:34:18][%emt 00:09:20]} 
9.b3 {[%clk 01:24:31][%emt 00:07:44]} 9...a4 {[%clk 01:30:09][%emt 00:04:38]} 
10.a3 {[%clk 01:16:04][%emt 00:08:57]} 10...axb3 {[%clk 01:23:10][%emt
00:07:29]} 11.Qxb3 {[%clk 01:16:26][%emt 00:00:07]} 11...c5 {[%clk
01:21:13][%emt 00:02:28]} 12.Bb2 {[%clk 01:11:23][%emt 00:05:32]} 12...cxd4 
{[%clk 01:20:00][%emt 00:01:44]} 13.Bxd4 {[%clk 01:11:14][%emt 00:00:39]} 
13...Nc5 {[%clk 01:19:43][%emt 00:00:46]} 14.Qc2 {[%clk 01:05:46][%emt
00:05:58]} 14...Bd7 {[%clk 01:19:39][%emt 00:00:35]} 15.cxd5 {[%clk
01:02:13][%emt 00:04:03]} 15...Ba4 {[%clk 01:18:21][%emt 00:01:48]} 16.Qb2 
{[%clk 01:01:49][%emt 00:00:55]} 16...exd5 {[%clk 01:16:36][%emt 00:02:15]} 
17.Rfc1 {[%clk 00:59:23][%emt 00:02:56]} 17...Ra5 {[%clk 01:11:05][%emt
00:06:02]} 18.Rab1 {[%clk 00:55:38][%emt 00:04:15]} 18...Bc6 {[%clk
01:03:49][%emt 00:07:46]} 19.Bc3 {[%clk 00:53:03][%emt 00:03:04]} 19...Ra8 
{[%clk 00:56:59][%emt 00:07:20]} 20.Bb4 {[%clk 00:52:59][%emt 00:00:33]} 
20...Ne6 {[%clk 00:56:53][%emt 00:00:37]} 21.Nb3 {[%clk 00:48:56][%emt
00:04:33]} 21...Bxb4 {[%clk 00:40:41][%emt 00:16:43]} 22.axb4 {[%clk
00:49:20][%emt 00:00:06]} 22...Bb5 {[%clk 00:40:44][%emt 00:00:27]} 23.Nbd4 
{[%clk 00:45:11][%emt 00:04:38]} 23...Bc4 {[%clk 00:39:17][%emt 00:01:57]} 
24.Ra1 {[%clk 00:44:50][%emt 00:00:51]} 24...Qb6 {[%clk 00:36:48][%emt
00:03:00]} 25.Nxe6 {[%clk 00:40:07][%emt 00:05:13]} 25...Rxa1 {[%clk
00:29:23][%emt 00:07:55]} 26.Rxa1 {[%clk 00:40:28][%emt 00:00:08]} 26...fxe6 
{[%clk 00:29:28][%emt 00:00:25]} 27.e3 {[%clk 00:37:55][%emt 00:03:04]} 
27...Nd7 {[%clk 00:26:31][%emt 00:03:26]} 28.Ne5 {[%clk 00:34:05][%emt
00:04:20]} 28...Nxe5 {[%clk 00:26:24][%emt 00:00:37]} 29.Qxe5 {[%clk
00:34:30][%emt 00:00:04]} 29...Qxb4 {[%clk 00:20:12][%emt 00:06:44]} 30.Qxe6+ 
{[%clk 00:33:21][%emt 00:01:38]} 30...Kh8 {[%clk 00:20:39][%emt 00:00:04]} 
31.Qe5 {[%clk 00:31:52][%emt 00:01:58]} 31...Qd2 {[%clk 00:18:23][%emt
00:02:45]} 32.Qf5 {[%clk 00:27:42] [%emt 00:04:40]} 32...Kg8 {[%clk 00:16:41]
[%emt 00:02:13]} 33.Qe6+ {[%clk 00:28:07] [%emt 00:00:05]} 33...Kh8 {[%clk
00:17:08][%emt 00:00:03]} 34.Qf5 {[%clk 00:27:42][%emt 00:04:40]} 34...Kg8 
{[%clk 00:16:41][%emt 00:02:13]} 35.Qe6+ {[%clk 00:28:07][%emt 00:00:05]} 1/2-1/2

[Event "FIDE Grand Swiss 2023"]
[Site "Villa Marina, Douglas, Isle of Man"]
[Date "2023.11.03"]
[Round "9.54"]
[White "Krasenkow, Michal"]
[Black "Henriquez Villagra, Cristobal"]
[Result "1-0"]
[WhiteElo "2531"]
[BlackElo "2630"]
[EventDate "2023.10.25"]
[ECO "D35"]
[PlyCount "81"]
[BlackClock "00:01:23"]
[BlackFideId "3409350"]
[TimeControl "40/100 + 20/50 + 15 + 30s/move"]
[WhiteClock "00:21:00"]
[WhiteFideId "1113100"]

1.d4 {[%clk 01:40:57][%emt 00:00:03]} 1...d5 {[%clk 01:40:54][%emt 00:00:06]} 
2.c4 {[%clk 01:41:23][%emt 00:00:04]} 2...e6 {[%clk 01:41:20][%emt 00:00:04]} 
3.Nc3 {[%clk 01:41:49][%emt 00:00:05]} 3...Nf6 {[%clk 01:41:45][%emt 00:00:04]} 
4.cxd5 {[%clk 01:42:13][%emt 00:00:06]} 4...exd5 {[%clk 01:42:10][%emt
00:00:05]} 5.Bg5 {[%clk 01:42:37][%emt 00:00:06]} 5...c6 {[%clk 01:42:22][%emt
00:00:18]} 6.e3 {[%clk 01:42:41][%emt 00:00:27]} 6...Be7 {[%clk 01:40:36][%emt
00:02:16]} 7.Bd3 {[%clk 01:43:04][%emt 00:00:06]} 7...Nbd7 {[%clk 01:40:58][%emt
00:00:05]} 8.Nge2 {[%clk 01:43:05][%emt 00:00:31]} 8...Nh5 {[%clk 01:40:06][%emt
00:01:23]} 9.Bxe7 {[%clk 01:43:06][%emt 00:00:30]} 9...Qxe7 {[%clk
01:40:30][%emt 00:00:05]} 10.Rb1 {[%clk 01:41:03][%emt 00:02:32]} 10...a6 
{[%clk 01:25:06][%emt 00:15:54]} 11.b4 {[%clk 01:40:31][%emt 00:01:03]} 11...g6 
{[%clk 01:14:43][%emt 00:10:53]} 12.a4 {[%clk 01:40:19][%emt 00:00:43]} 
12...O-O {[%clk 01:14:26][%emt 00:00:47]} 13.b5 {[%clk 01:39:54][%emt 00:00:55]} 
13...Qd6 {[%clk 01:10:36][%emt 00:04:20]} 14.bxc6 {[%clk 01:36:00][%emt
00:04:25]} 14...bxc6 {[%clk 01:11:01][%emt 00:00:04]} 15.a5 {[%clk
01:36:07][%emt 00:00:24]} 15...c5 {[%clk 01:09:16][%emt 00:02:14]} 16.Qa4 
{[%clk 01:33:26][%emt 00:03:11]} 16...c4 {[%clk 01:02:45][%emt 00:07:01]} 
17.Bc2 {[%clk 01:33:21][%emt 00:00:35]} 17...Rb8 {[%clk 01:03:09][%emt
00:00:06]} 18.O-O {[%clk 01:29:40][%emt 00:04:11]} 18...Bb7 {[%clk
01:02:01][%emt 00:01:38]} 19.e4 {[%clk 01:22:07][%emt 00:08:03]} 19...Bc6 
{[%clk 00:50:37][%emt 00:11:54]} 20.Qa2 {[%clk 01:21:15][%emt 00:01:22]} 
20...dxe4 {[%clk 00:50:29][%emt 00:00:38]} 21.Nxe4 {[%clk 01:19:26][%emt
00:02:19]} 21...Qe6 {[%clk 00:45:56][%emt 00:05:03]} 22.N2c3 {[%clk
01:10:56][%emt 00:09:00]} 22...Nf4 {[%clk 00:45:15][%emt 00:01:11]} 23.f3 
{[%clk 01:07:00][%emt 00:04:26]} 23...f5 {[%clk 00:42:56][%emt 00:02:49]} 
24.Nf2 {[%clk 01:06:22][%emt 00:01:09]} 24...Rxb1 {[%clk 00:40:58][%emt
00:02:27]} 25.Bxb1 {[%clk 01:05:37][%emt 00:01:14]} 25...Re8 {[%clk
00:41:00][%emt 00:00:28]} 26.Nfd1 {[%clk 00:54:34][%emt 00:11:33]} 26...Nf6 
{[%clk 00:30:18][%emt 00:11:13]} 27.Qd2 {[%clk 00:53:38][%emt 00:01:25]} 
27...Qd6 {[%clk 00:29:13][%emt 00:01:35]} 28.Ba2 {[%clk 00:51:40][%emt
00:02:29]} 28...Bb5 {[%clk 00:29:36][%emt 00:00:06]} 29.Ne3 {[%clk
00:39:27][%emt 00:12:43]} 29...Qb4 {[%clk 00:28:55][%emt 00:01:13]} 30.Rc1 
{[%clk 00:38:28][%emt 00:01:28]} 30...N6d5 {[%clk 00:22:53][%emt 00:06:31]} 
31.Nexd5 {[%clk 00:37:13][%emt 00:01:46]} 31...Nxd5 {[%clk 00:23:17][%emt
00:00:06]} 32.Rc2 {[%clk 00:31:18][%emt 00:06:24]} 32...Ne3 {[%clk
00:21:09][%emt 00:02:39]} 33.Rb2 {[%clk 00:31:05][%emt 00:00:43]} 33...Qxa5 
{[%clk 00:20:38][%emt 00:01:01]} 34.d5 {[%clk 00:30:46][%emt 00:00:48]} 
34...Qb6 {[%clk 00:20:33][%emt 00:00:36]} 35.Kh1 {[%clk 00:31:05][%emt
00:00:11]} 35...Qc5 {[%clk 00:18:18][%emt 00:02:45]} 36.Rb1 {[%clk
00:26:29][%emt 00:05:06]} 36...Rd8 {[%clk 00:12:39][%emt 00:06:09]} 37.Re1 
{[%clk 00:23:47][%emt 00:03:11]} 37...Nxd5 {[%clk 00:12:34][%emt 00:00:36]} 
38.Rd1 {[%clk 00:22:27][%emt 00:01:50]} 38...Nxc3 {[%clk 00:04:49][%emt
00:08:14]} 39.Qxd8+ {[%clk 00:22:43][%emt 00:00:15]} 39...Kf7 {[%clk
00:05:15][%emt 00:00:03]} 40.Rd6 {[%clk 00:21:38][%emt 00:01:36]} 40...Qe5 
{[%clk 00:01:50][%emt 00:03:55]} 41.Bxc4+ {[%clk 00:21:00] [%emt 00:01:08]} 1-0

[Event "FIDE Grand Swiss 2023"]
[Site "Villa Marina, Douglas, Isle of Man"]
[Date "2023.11.03"]
[Round "9.55"]
[White "Kozak, Adam"]
[Black "Amar, Elham"]
[Result "1-0"]
[WhiteElo "2566"]
[BlackElo "2568"]
[EventDate "2023.10.25"]
[ECO "A07"]
[PlyCount "96"]
[BlackClock "00:44:07"]
[BlackFideId "1533533"]
[TimeControl "40/100 + 20/50 + 15 + 30s/move"]
[WhiteClock "00:25:09"]
[WhiteFideId "753246"]

1.Nf3 {[%clk 01:40:39][%emt 00:00:05]} 1...Nf6 {[%clk 01:40:52][%emt 00:00:23]} 
2.g3 {[%clk 01:40:08][%emt 00:01:02]} 2...d5 {[%clk 01:41:03][%emt 00:00:19]} 
3.Bg2 {[%clk 01:40:27][%emt 00:00:11]} 3...e6 {[%clk 01:39:48][%emt 00:01:45]} 
4.O-O {[%clk 01:38:59][%emt 00:01:58]} 4...c5 {[%clk 01:37:58][%emt 00:02:20]} 
5.c4 {[%clk 01:38:32][%emt 00:00:57]} 5...d4 {[%clk 01:37:13][%emt 00:01:14]} 
6.e3 {[%clk 01:38:51][%emt 00:00:11]} 6...Nc6 {[%clk 01:37:15][%emt 00:00:29]} 
7.exd4 {[%clk 01:39:12][%emt 00:00:09]} 7...cxd4 {[%clk 01:37:39][%emt
00:00:06]} 8.d3 {[%clk 01:39:38][%emt 00:00:04]} 8...Bc5 {[%clk 01:37:07][%emt
00:01:02]} 9.Bg5 {[%clk 01:31:49][%emt 00:08:18]} 9...h6 {[%clk 01:37:19][%emt
00:00:18]} 10.Bxf6 {[%clk 01:32:13][%emt 00:00:07]} 10...gxf6 {[%clk
01:37:38][%emt 00:00:11]} 11.Nbd2 {[%clk 01:28:56][%emt 00:03:47]} 11...Kf8 
{[%clk 01:38:00][%emt 00:00:07]} 12.Rc1 {[%clk 01:23:55][%emt 00:05:32]} 
12...Rb8 {[%clk 01:32:05][%emt 00:06:25]} 13.Ne1 {[%clk 01:01:01][%emt
00:23:24]} 13...Bd7 {[%clk 01:24:40][%emt 00:07:55]} 14.Nc2 {[%clk
00:59:27][%emt 00:02:04]} 14...b6 {[%clk 01:15:18][%emt 00:09:53]} 15.Rb1 
{[%clk 00:58:03][%emt 00:01:53]} 15...a5 {[%clk 01:06:03][%emt 00:09:45]} 16.a3 
{[%clk 00:56:56][%emt 00:01:36]} 16...a4 {[%clk 01:05:44][%emt 00:00:49]} 17.b4 
{[%clk 00:57:02][%emt 00:00:24]} 17...axb3 {[%clk 01:06:05][%emt 00:00:10]} 
18.Nxb3 {[%clk 00:57:27][%emt 00:00:05]} 18...h5 {[%clk 00:52:01][%emt
00:14:34]} 19.Qe2 {[%clk 00:45:24][%emt 00:12:33]} 19...Kg7 {[%clk
00:38:44][%emt 00:13:47]} 20.Nd2 {[%clk 00:33:08][%emt 00:12:46]} 20...Qe7 
{[%clk 00:28:59][%emt 00:10:15]} 21.Nf3 {[%clk 00:31:22][%emt 00:02:16]} 
21...Qd6 {[%clk 00:27:16][%emt 00:02:12]} 22.Rb3 {[%clk 00:27:09][%emt
00:04:44]} 22...Ne5 {[%clk 00:26:26][%emt 00:01:20]} 23.Nxe5 {[%clk
00:21:28][%emt 00:06:11]} 23...Qxe5 {[%clk 00:23:02][%emt 00:03:54]} 24.Qxe5 
{[%clk 00:21:51][%emt 00:00:06]} 24...fxe5 {[%clk 00:23:31][%emt 00:00:02]} 
25.Nb4 {[%clk 00:22:12][%emt 00:00:08]} 25...Ba4 {[%clk 00:17:27][%emt
00:06:34]} 26.Rb2 {[%clk 00:21:37][%emt 00:01:06]} 26...Rbc8 {[%clk
00:12:10][%emt 00:05:47]} 27.Re1 {[%clk 00:17:15][%emt 00:04:52]} 27...b5 
{[%clk 00:08:23][%emt 00:04:18]} 28.cxb5 {[%clk 00:16:53][%emt 00:00:51]} 
28...Bxb5 {[%clk 00:08:25][%emt 00:00:28]} 29.Rxe5 {[%clk 00:17:03][%emt
00:00:19]} 29...f6 {[%clk 00:04:50][%emt 00:04:06]} 30.Re1 {[%clk 00:15:13][%emt
00:02:20]} 30...e5 {[%clk 00:04:50][%emt 00:00:30]} 31.Be4 {[%clk 00:14:12][%emt
00:01:30]} 31...Bd6 {[%clk 00:05:01][%emt 00:00:19]} 32.Ra1 {[%clk
00:08:35][%emt 00:06:06]} 32...Bd7 {[%clk 00:03:03][%emt 00:02:28]} 33.Nd5 
{[%clk 00:07:17][%emt 00:01:48]} 33...Rb8 {[%clk 00:03:11][%emt 00:00:23]} 
34.Rab1 {[%clk 00:06:33][%emt 00:01:14]} 34...Kf7 {[%clk 00:00:39][%emt
00:03:02]} 35.Nb6 {[%clk 00:01:45][%emt 00:05:18]} 35...Be6 {[%clk
00:00:32][%emt 00:00:37]} 36.a4 {[%clk 00:02:13][%emt 00:00:01]} 36...f5 {[%clk
00:00:42][%emt 00:00:20]} 37.Bf3 {[%clk 00:01:43][%emt 00:01:00]} 37...e4 
{[%clk 00:00:34][%emt 00:00:39]} 38.dxe4 {[%clk 00:02:03][%emt 00:00:10]} 
38...d3 {[%clk 00:00:54][%emt 00:00:09]} 39.exf5 {[%clk 00:02:12][%emt
00:00:22]} 39...Bxf5 {[%clk 00:01:16][%emt 00:00:07]} 40.a5 {[%clk
00:01:28][%emt 00:01:14]} 40...Rbd8 {[%clk 00:00:31][%emt 00:01:16]} 41.Rb5 
{[%clk 00:39:42][%emt 00:12:16]} 41...Bh3 {[%clk 00:45:52][%emt 00:05:09]} 
42.Rd1 {[%clk 00:35:46][%emt 00:04:26]} 42...Rde8 {[%clk 00:44:48][%emt
00:01:34]} 43.Nc4 {[%clk 00:33:26][%emt 00:02:49]} 43...Bb8 {[%clk
00:44:57][%emt 00:00:21]} 44.Ne3 {[%clk 00:30:33][%emt 00:03:24]} 44...Rd8 
{[%clk 00:43:56][%emt 00:01:31]} 45.Bxh5+ {[%clk 00:29:09][%emt 00:01:54]} 
45...Ke7 {[%clk 00:44:07][%emt 00:00:18]} 46.Bg4 {[%clk 00:25:09][%emt
00:04:30]} 46...Bxg4 {[%clk 00:43:55][%emt 00:00:43]} 47.Nxg4 {[%clk
00:25:34][%emt 00:00:04]} 47...d2 {[%clk 00:44:01][%emt 00:00:25]} 48.Rb2 
{[%clk 00:25:33][%emt 00:00:30]} 48...Rh5 {[%clk 00:44:07] [%emt 00:00:24]} 1-0